[Event "Live Chess"]
[Site "Chess.com"]
[Date "2023.09.16"]
[Round "-"]
[White "asafefausto"]
[Black "RyanDiniz2011"]
[Result "0-1"]
[WhiteElo "647"]
[BlackElo "1557"]
[TimeControl "900+5"]
[EndTime "7:29:36 PDT"]
[Termination "RyanDiniz2011 venceu por xeque-mate"]

1. e4 {[%clk 0:15:00.6]} 1... e6 {[%clk 0:15:03.9]} 2. d4 {[%clk 0:15:03.3]}
2... d5 {[%clk 0:15:07.1]} 3. exd5 {[%clk 0:15:03.7]} 3... exd5 {[%clk
0:15:11.5]} 4. Qe2+ {[%clk 0:15:06.7]} 4... Be7 {[%clk 0:15:13.5]} 5. Qb5+
{[%clk 0:15:07.7]} 5... Qd7 {[%clk 0:15:12.2]} 6. Qxd7+ {[%clk 0:15:07.8]} 6...
Bxd7 {[%clk 0:15:15.2]} 7. b3 {[%clk 0:15:00.5]} 7... Nf6 {[%clk 0:15:17.9]} 8.
a4 {[%clk 0:15:03.3]} 8... Nc6 {[%clk 0:15:21.6]} 9. Bb5 {[%clk 0:15:05]} 9...
O-O {[%clk 0:15:25.8]} 10. Nf3 {[%clk 0:15:04.2]} 10... Rfe8 {[%clk 0:15:29.4]}
11. O-O {[%clk 0:15:06.4]} 11... Bb4 {[%clk 0:15:31.9]} 12. Bf4 {[%clk 0:14:35]}
12... a6 {[%clk 0:15:29.8]} 13. Bxc6 {[%clk 0:14:09.6]} 13... Bxc6 {[%clk
0:15:31.9]} 14. Bxc7 {[%clk 0:14:10.8]} 14... Rac8 {[%clk 0:15:34.1]} 15. Bg3
{[%clk 0:14:05.1]} 15... Ne4 {[%clk 0:15:34.1]} 16. Re1 {[%clk 0:13:57.7]} 16...
Bxe1 {[%clk 0:15:34.6]} 17. Kf1 {[%clk 0:13:54.4]} 17... Nxg3+ {[%clk
0:15:35.8]} 18. hxg3 {[%clk 0:13:49.2]} 18... Ba5 {[%clk 0:15:38.5]} 19. Na3
{[%clk 0:13:47.6]} 19... b5 {[%clk 0:15:36.9]} 20. c4 {[%clk 0:13:41.9]} 20...
dxc4 {[%clk 0:15:39.2]} 21. bxc4 {[%clk 0:13:44.1]} 21... bxc4 {[%clk
0:15:42.4]} 22. Nxc4 {[%clk 0:13:46.9]} 22... Bb4 {[%clk 0:15:33]} 23. Nb6
{[%clk 0:13:33.5]} 23... Rb8 {[%clk 0:15:31.9]} 24. Nc4 {[%clk 0:13:28.2]} 24...
Bxf3 {[%clk 0:15:32.8]} 25. gxf3 {[%clk 0:13:22.4]} 25... Bc3 {[%clk 0:15:35.8]}
26. Rc1 {[%clk 0:13:20.9]} 26... Bxd4 {[%clk 0:15:37.6]} 27. Nd6 {[%clk
0:13:22.6]} 27... Red8 {[%clk 0:15:34.8]} 28. Nxf7 {[%clk 0:13:12.2]} 28... Kxf7
{[%clk 0:15:36.5]} 29. Rc7+ {[%clk 0:13:14]} 29... Kg8 {[%clk 0:15:40.3]} 30. f4
{[%clk 0:12:56]} 30... Rdc8 {[%clk 0:15:35.2]} 31. Rd7 {[%clk 0:12:47.3]} 31...
Rd8 {[%clk 0:15:37]} 32. Rc7 {[%clk 0:12:44.1]} 32... Rb2 {[%clk 0:15:37.2]} 33.
f5 {[%clk 0:12:15.2]} 33... Rxf2+ {[%clk 0:15:40]} 34. Ke1 {[%clk 0:12:15.2]}
34... Rb8 {[%clk 0:15:37.8]} 35. Rc1 {[%clk 0:12:08.2]} 35... Rxf5 {[%clk
0:15:34.4]} 36. Rd1 {[%clk 0:12:08.4]} 36... Re8+ {[%clk 0:15:38]} 37. Kd2
{[%clk 0:12:08.2]} 37... Be3+ {[%clk 0:15:41.5]} 38. Ke2 {[%clk 0:12:07.3]}
38... Rf2+ {[%clk 0:15:38.6]} 39. Ke1 {[%clk 0:12:05.5]} 39... Rh2 {[%clk
0:15:39.9]} 40. Rd6 {[%clk 0:11:46.1]} 40... Rb8 {[%clk 0:15:38.5]} 41. Rd1
{[%clk 0:11:44.4]} 41... Rbb2 {[%clk 0:15:38.5]} 42. Kf1 {[%clk 0:11:37.5]}
42... Rhf2+ {[%clk 0:15:38.4]} 43. Kg1 {[%clk 0:11:31.8]} 43... Rfd2+ {[%clk
0:15:41.4]} 44. Kf1 {[%clk 0:11:26.1]} 44... Rxd1# {[%clk 0:15:39.6]} 0-1

[Event "Live Chess"]
[Site "Chess.com"]
[Date "2023.09.16"]
[Round "-"]
[White "guilhermemazza"]
[Black "CauaLopes12"]
[Result "0-1"]
[WhiteElo "457"]
[BlackElo "1325"]
[TimeControl "900+5"]
[EndTime "7:30:06 PDT"]
[Termination "CauaLopes12 venceu por xeque-mate"]

1. e4 {[%clk 0:15:00.5]} 1... e5 {[%clk 0:15:03.4]} 2. Nf3 {[%clk 0:15:01.8]}
2... Nf6 {[%clk 0:15:07.8]} 3. Nxe5 {[%clk 0:15:05.3]} 3... d6 {[%clk
0:15:12.3]} 4. Nc4 {[%clk 0:15:00.2]} 4... Nxe4 {[%clk 0:15:14]} 5. Qe2 {[%clk
0:15:02.4]} 5... Qe7 {[%clk 0:15:16.3]} 6. f3 {[%clk 0:15:03.2]} 6... Nf6 {[%clk
0:15:15.6]} 7. Qxe7+ {[%clk 0:15:05.9]} 7... Bxe7 {[%clk 0:15:20.2]} 8. d4
{[%clk 0:15:06.4]} 8... d5 {[%clk 0:15:20.9]} 9. Ne5 {[%clk 0:15:05.7]} 9... O-O
{[%clk 0:15:20.6]} 10. Nc3 {[%clk 0:14:51.1]} 10... Re8 {[%clk 0:15:21.1]} 11.
Bd3 {[%clk 0:14:52.9]} 11... Bd6 {[%clk 0:15:23]} 12. O-O {[%clk 0:14:51.8]}
12... Bxe5 {[%clk 0:15:24.4]} 13. dxe5 {[%clk 0:14:52.1]} 13... Rxe5 {[%clk
0:15:28.8]} 14. Bf4 {[%clk 0:14:51.9]} 14... Re7 {[%clk 0:15:28]} 15. Bxc7
{[%clk 0:14:50.8]} 15... Rxc7 {[%clk 0:15:30.1]} 16. Be4 {[%clk 0:14:44.8]}
16... dxe4 {[%clk 0:15:31.7]} 17. Rfd1 {[%clk 0:14:47.9]} 17... Rd7 {[%clk
0:15:32.5]} 18. Rd2 {[%clk 0:14:50]} 18... Rxd2 {[%clk 0:15:33.8]} 19. Nxe4
{[%clk 0:14:53.6]} 19... Nxe4 {[%clk 0:15:36.5]} 20. fxe4 {[%clk 0:14:56.9]}
20... Be6 {[%clk 0:15:38.7]} 21. Kf1 {[%clk 0:14:56.2]} 21... Rxc2 {[%clk
0:15:41]} 22. Ke1 {[%clk 0:14:57.3]} 22... Nc6 {[%clk 0:15:44.8]} 23. Kd1 {[%clk
0:14:58.8]} 23... Rxg2 {[%clk 0:15:49.2]} 24. Ke1 {[%clk 0:15:02.1]} 24... Rd8
{[%clk 0:15:51.8]} 25. b4 {[%clk 0:15:04.8]} 25... Rdd2 {[%clk 0:15:51.2]} 26.
b5 {[%clk 0:15:08.5]} 26... Rb2 {[%clk 0:15:54.5]} 27. bxc6 {[%clk 0:15:12.1]}
27... Rg1# {[%clk 0:15:58.5]} 0-1

[Event "Live Chess"]
[Site "Chess.com"]
[Date "2023.09.16"]
[Round "-"]
[White "lgomessc"]
[Black "isanamie12"]
[Result "1-0"]
[WhiteElo "1144"]
[BlackElo "802"]
[TimeControl "900+5"]
[EndTime "7:30:20 PDT"]
[Termination "lgomessc venceu por xeque-mate"]

1. e4 {[%clk 0:15:02.2]} 1... e5 {[%clk 0:15:02.7]} 2. Nf3 {[%clk 0:15:05.6]}
2... Nc6 {[%clk 0:15:07.1]} 3. Bc4 {[%clk 0:15:08.2]} 3... Bc5 {[%clk
0:15:09.4]} 4. Nc3 {[%clk 0:15:05.2]} 4... Nf6 {[%clk 0:15:11.9]} 5. d3 {[%clk
0:14:58.6]} 5... O-O {[%clk 0:15:14.4]} 6. Bg5 {[%clk 0:15:00]} 6... h6 {[%clk
0:15:14.1]} 7. Bh4 {[%clk 0:15:03.4]} 7... Be7 {[%clk 0:15:03.2]} 8. Nd5 {[%clk
0:14:53.2]} 8... Nxd5 {[%clk 0:15:05.2]} 9. Bxe7 {[%clk 0:14:53.8]} 9... Qxe7
{[%clk 0:15:08.1]} 10. exd5 {[%clk 0:14:57.8]} 10... Nd4 {[%clk 0:15:10.7]} 11.
O-O {[%clk 0:14:55]} 11... Nxf3+ {[%clk 0:14:56.5]} 12. Qxf3 {[%clk 0:14:56.3]}
12... c6 {[%clk 0:14:57]} 13. dxc6 {[%clk 0:14:54.1]} 13... bxc6 {[%clk
0:14:58.1]} 14. Rfe1 {[%clk 0:14:52.1]} 14... d5 {[%clk 0:14:59.4]} 15. Bb3
{[%clk 0:14:54.3]} 15... e4 {[%clk 0:14:47.6]} 16. dxe4 {[%clk 0:14:55.5]} 16...
Qf6 {[%clk 0:14:46.7]} 17. Qxf6 {[%clk 0:14:55.5]} 17... gxf6 {[%clk 0:14:49.5]}
18. exd5 {[%clk 0:14:58.6]} 18... cxd5 {[%clk 0:14:52.3]} 19. Bxd5 {[%clk
0:15:01]} 19... Rb8 {[%clk 0:14:56.4]} 20. b3 {[%clk 0:15:00]} 20... Be6 {[%clk
0:14:57.5]} 21. Bxe6 {[%clk 0:15:01.3]} 21... fxe6 {[%clk 0:15:00.9]} 22. Rxe6
{[%clk 0:15:04.9]} 22... Rfc8 {[%clk 0:15:04.9]} 23. c4 {[%clk 0:14:55.3]} 23...
Rd8 {[%clk 0:15:06.7]} 24. Rxf6 {[%clk 0:14:57.4]} 24... Rb7 {[%clk 0:15:03.8]}
25. Rxh6 {[%clk 0:14:57.8]} 25... Rbd7 {[%clk 0:15:03.9]} 26. h3 {[%clk
0:14:53.5]} 26... Rd1+ {[%clk 0:15:06.9]} 27. Rxd1 {[%clk 0:14:56.5]} 27...
Rxd1+ {[%clk 0:15:10.6]} 28. Kh2 {[%clk 0:14:59.9]} 28... Ra1 {[%clk 0:15:13.7]}
29. c5 {[%clk 0:15:03.5]} 29... Rxa2 {[%clk 0:15:16.5]} 30. c6 {[%clk
0:15:07.6]} 30... Rc2 {[%clk 0:15:19.5]} 31. f4 {[%clk 0:14:59.8]} 31... Kg7
{[%clk 0:15:17.8]} 32. Rd6 {[%clk 0:14:59.1]} 32... Kf7 {[%clk 0:15:19.4]} 33.
f5 {[%clk 0:14:58.3]} 33... Ke7 {[%clk 0:15:22.6]} 34. Re6+ {[%clk 0:15:01.8]}
34... Kf7 {[%clk 0:15:25.8]} 35. h4 {[%clk 0:14:38.9]} 35... a5 {[%clk
0:15:23.1]} 36. h5 {[%clk 0:14:39.5]} 36... Kg7 {[%clk 0:15:25.6]} 37. h6+
{[%clk 0:14:42.5]} 37... Kh7 {[%clk 0:15:28.6]} 38. f6 {[%clk 0:14:44.7]} 38...
Rf2 {[%clk 0:15:29.8]} 39. c7 {[%clk 0:14:45.4]} 39... Rc2 {[%clk 0:15:30]} 40.
f7 {[%clk 0:14:49.1]} 40... Rxc7 {[%clk 0:15:31.4]} 41. f8=Q {[%clk 0:14:47.6]}
41... Ra7 {[%clk 0:15:30.8]} 42. Re7+ {[%clk 0:14:37.6]} 42... Rxe7 {[%clk
0:15:32.9]} 43. Qxe7+ {[%clk 0:14:41.6]} 43... Kxh6 {[%clk 0:15:36.4]} 44. g4
{[%clk 0:14:43.8]} 44... a4 {[%clk 0:15:38.7]} 45. bxa4 {[%clk 0:14:43.8]} 45...
Kg6 {[%clk 0:15:42.8]} 46. Qe6+ {[%clk 0:14:44.7]} 46... Kg5 {[%clk 0:15:42]}
47. Qf5+ {[%clk 0:14:45.9]} 47... Kh6 {[%clk 0:15:41.4]} 48. a5 {[%clk
0:14:43.4]} 48... Kg7 {[%clk 0:15:43.7]} 49. a6 {[%clk 0:14:45.4]} 49... Kh6
{[%clk 0:15:47.1]} 50. a7 {[%clk 0:14:48.8]} 50... Kg7 {[%clk 0:15:51.5]} 51.
a8=Q {[%clk 0:14:50.2]} 51... Kh6 {[%clk 0:15:53.4]} 52. Qh8# {[%clk 0:14:52.9]}
1-0

[Event "Live Chess"]
[Site "Chess.com"]
[Date "2023.09.16"]
[Round "-"]
[White "PedroRossi14"]
[Black "Highlanderson"]
[Result "0-1"]
[WhiteElo "518"]
[BlackElo "1516"]
[TimeControl "900+5"]
[EndTime "7:31:51 PDT"]
[Termination "Highlanderson venceu por desistência"]

1. e4 {[%clk 0:15:02.8]} 1... e5 {[%clk 0:15:02.3]} 2. Nf3 {[%clk 0:15:06.1]}
2... Nf6 {[%clk 0:15:06]} 3. Nc3 {[%clk 0:15:08.5]} 3... Nc6 {[%clk 0:15:09.7]}
4. Be2 {[%clk 0:15:11.8]} 4... Bb4 {[%clk 0:15:11.7]} 5. O-O {[%clk 0:15:14.7]}
5... O-O {[%clk 0:15:12.8]} 6. d4 {[%clk 0:15:12.8]} 6... Re8 {[%clk 0:14:32.7]}
7. Nd5 {[%clk 0:15:06.3]} 7... Nxd5 {[%clk 0:14:24.7]} 8. exd5 {[%clk
0:15:08.9]} 8... e4 {[%clk 0:14:16.4]} 9. Ne1 {[%clk 0:14:46.3]} 9... Ne7 {[%clk
0:13:46]} 10. Bc4 {[%clk 0:14:36.7]} 10... d6 {[%clk 0:13:27.3]} 11. c3 {[%clk
0:14:35.8]} 11... Ba5 {[%clk 0:13:27.9]} 12. Nc2 {[%clk 0:14:38.2]} 12... Bb6
{[%clk 0:13:27]} 13. a4 {[%clk 0:14:27.4]} 13... a6 {[%clk 0:13:26.9]} 14. a5
{[%clk 0:14:30]} 14... Ba7 {[%clk 0:13:30.1]} 15. Nb4 {[%clk 0:14:19.5]} 15...
c5 {[%clk 0:13:06.5]} 16. Nc2 {[%clk 0:14:07.9]} 16... b5 {[%clk 0:12:34.8]} 17.
axb6 {[%clk 0:14:02.9]} 17... Bxb6 {[%clk 0:12:11]} 18. Re1 {[%clk 0:13:57.4]}
18... cxd4 {[%clk 0:11:52.3]} 19. cxd4 {[%clk 0:13:59.7]} 19... Nf5 {[%clk
0:11:54.7]} 20. Ra3 {[%clk 0:13:44]} 20... Qf6 {[%clk 0:11:45.8]} 21. b3 {[%clk
0:13:25.3]} 21... Nxd4 {[%clk 0:11:42.7]} 22. Nxd4 {[%clk 0:13:28.4]} 22... Bxd4
{[%clk 0:11:43.8]} 23. Be3 {[%clk 0:13:20.7]} 23... Bxe3 {[%clk 0:11:03.8]} 24.
Rxe3 {[%clk 0:13:22.4]} 24... Qb2 {[%clk 0:11:03.2]} 25. Ra4 {[%clk 0:13:06.4]}
25... Bd7 {[%clk 0:10:20.6]} 26. Re2 {[%clk 0:12:58.6]} 26... Bg4 {[%clk
0:10:10.7]} 27. Ra2 {[%clk 0:12:55.1]} 27... Qf6 {[%clk 0:09:42.6]} 28. Qd2
{[%clk 0:12:50.6]} 28... Bxe2 {[%clk 0:09:34.6]} 29. Qxe2 {[%clk 0:12:51.2]}
29... Qd4 {[%clk 0:09:01.1]} 30. Rd2 {[%clk 0:12:51.7]} 30... Qe5 {[%clk
0:08:56.4]} 31. b4 {[%clk 0:12:37.6]} 31... Rec8 {[%clk 0:08:09]} 32. h3 {[%clk
0:12:29]} 32... a5 {[%clk 0:07:44.8]} 33. b5 {[%clk 0:12:28.2]} 33... Qc3 {[%clk
0:07:28.8]} 34. Rc2 {[%clk 0:12:18.8]} 34... Qa1+ {[%clk 0:07:14.4]} 35. Kh2
{[%clk 0:12:18.1]} 35... Qe5+ {[%clk 0:06:44.4]} 36. g3 {[%clk 0:12:17.3]} 36...
Rab8 {[%clk 0:06:40.7]} 37. f4 {[%clk 0:12:05.5]} 37... Qd4 {[%clk 0:06:39.4]}
38. f5 {[%clk 0:11:53.6]} 38... Qxc4 {[%clk 0:06:40.3]} 39. Rxc4 {[%clk
0:11:56.8]} 39... Rxc4 {[%clk 0:06:25.3]} 40. Qxc4 {[%clk 0:11:59.7]} 40... Re8
{[%clk 0:06:28.4]} 41. b6 {[%clk 0:11:53.9]} 41... e3 {[%clk 0:06:30.7]} 42. b7
{[%clk 0:11:57.2]} 42... h6 {[%clk 0:06:14.3]} 43. Kg2 {[%clk 0:11:59.8]} 43...
e2 {[%clk 0:06:11.7]} 44. Kf2 {[%clk 0:12:03.7]} 44... e1=Q+ {[%clk 0:06:14.6]}
45. Kf3 {[%clk 0:12:03]} 45... Re3+ {[%clk 0:06:01.7]} 46. Kg2 {[%clk
0:12:02.2]} 46... Qd2+ {[%clk 0:05:42.4]} 47. Kg1 {[%clk 0:11:48.1]} 47... Re1+
{[%clk 0:05:39.7]} 48. Qf1 {[%clk 0:11:51.5]} 48... Rxf1+ {[%clk 0:05:43.1]} 49.
Kxf1 {[%clk 0:11:54.9]} 49... Qc1+ {[%clk 0:05:46.8]} 50. Kg2 {[%clk 0:11:44.5]}
50... Qb2+ {[%clk 0:05:48.4]} 0-1

[Event "Live Chess"]
[Site "Chess.com"]
[Date "2023.09.16"]
[Round "-"]
[White "Sabadin21"]
[Black "Rafael-2021"]
[Result "1/2-1/2"]
[WhiteElo "880"]
[BlackElo "1062"]
[TimeControl "900+5"]
[EndTime "7:32:35 PDT"]
[Termination "Empate por afogamento"]

1. e4 {[%clk 0:15:03.6]} 1... e5 {[%clk 0:15:02.6]} 2. Nf3 {[%clk 0:15:06.7]}
2... Nc6 {[%clk 0:15:05.9]} 3. Nc3 {[%clk 0:15:11]} 3... d6 {[%clk 0:15:08.3]}
4. d3 {[%clk 0:15:15.2]} 4... Bg4 {[%clk 0:15:11]} 5. Be3 {[%clk 0:15:18.8]}
5... Nf6 {[%clk 0:15:13.3]} 6. Be2 {[%clk 0:15:21.8]} 6... Be7 {[%clk
0:15:15.2]} 7. h3 {[%clk 0:15:26.3]} 7... Bxf3 {[%clk 0:15:17.6]} 8. Bxf3 {[%clk
0:15:29.5]} 8... O-O {[%clk 0:15:20.8]} 9. O-O {[%clk 0:15:33.8]} 9... Nd4
{[%clk 0:15:10.7]} 10. Bxd4 {[%clk 0:15:37.1]} 10... exd4 {[%clk 0:15:14]} 11.
Ne2 {[%clk 0:15:41]} 11... c5 {[%clk 0:15:17]} 12. Qd2 {[%clk 0:15:43.9]} 12...
Qb6 {[%clk 0:15:16.3]} 13. b3 {[%clk 0:15:43.9]} 13... Rfe8 {[%clk 0:15:13.2]}
14. c3 {[%clk 0:15:34.4]} 14... dxc3 {[%clk 0:15:15.5]} 15. Qxc3 {[%clk
0:15:38.8]} 15... Qb4 {[%clk 0:15:15.1]} 16. Qxb4 {[%clk 0:15:42.3]} 16... cxb4
{[%clk 0:15:17.5]} 17. d4 {[%clk 0:15:46.3]} 17... Rac8 {[%clk 0:15:19.8]} 18.
d5 {[%clk 0:15:46.7]} 18... Bd8 {[%clk 0:15:18.4]} 19. Nd4 {[%clk 0:15:34.1]}
19... Nxe4 {[%clk 0:15:16.9]} 20. Nb5 {[%clk 0:15:28.1]} 20... a6 {[%clk
0:15:17.5]} 21. Nd4 {[%clk 0:15:25.2]} 21... Nd2 {[%clk 0:15:17.5]} 22. Rfd1
{[%clk 0:15:20]} 22... Nxf3+ {[%clk 0:15:20.7]} 23. Nxf3 {[%clk 0:15:21.5]}
23... Bf6 {[%clk 0:15:20.5]} 24. Nd4 {[%clk 0:15:23.3]} 24... Bxd4 {[%clk
0:15:18.5]} 25. Rxd4 {[%clk 0:15:25.4]} 25... a5 {[%clk 0:15:21.3]} 26. Rb1
{[%clk 0:15:22.9]} 26... h6 {[%clk 0:15:22.8]} 27. Rc4 {[%clk 0:15:23.6]} 27...
Rxc4 {[%clk 0:15:21.6]} 28. bxc4 {[%clk 0:15:28]} 28... Re2 {[%clk 0:15:23.8]}
29. Ra1 {[%clk 0:15:29.5]} 29... Rc2 {[%clk 0:15:27]} 30. a3 {[%clk 0:15:31.6]}
30... Rxc4 {[%clk 0:15:29.2]} 31. axb4 {[%clk 0:15:34.9]} 31... Rxb4 {[%clk
0:15:31.5]} 32. Rxa5 {[%clk 0:15:38.4]} 32... Rd4 {[%clk 0:15:30.7]} 33. Ra8+
{[%clk 0:15:39.8]} 33... Kh7 {[%clk 0:15:33.9]} 34. Rb8 {[%clk 0:15:44.2]} 34...
Rxd5 {[%clk 0:15:37.3]} 35. Rxb7 {[%clk 0:15:48.7]} 35... Rd1+ {[%clk
0:15:39.4]} 36. Kh2 {[%clk 0:15:50.5]} 36... f6 {[%clk 0:15:42.8]} 37. f3 {[%clk
0:15:52.8]} 37... d5 {[%clk 0:15:38]} 38. Rd7 {[%clk 0:15:56.3]} 38... d4 {[%clk
0:15:41.2]} 39. Kg3 {[%clk 0:16:00.2]} 39... Kg6 {[%clk 0:15:43.8]} 40. Kf2
{[%clk 0:16:04.6]} 40... d3 {[%clk 0:15:37.7]} 41. Ke3 {[%clk 0:16:05.5]} 41...
Rg1 {[%clk 0:15:39.2]} 42. Rxd3 {[%clk 0:16:07.1]} 42... Rxg2 {[%clk 0:15:42.7]}
43. Rd4 {[%clk 0:16:06.8]} 43... Rg3 {[%clk 0:15:43.2]} 44. Rg4+ {[%clk
0:16:07.8]} 44... Rxg4 {[%clk 0:15:46.4]} 45. hxg4 {[%clk 0:16:12.1]} 45... Kg5
{[%clk 0:15:50.2]} 46. Kf2 {[%clk 0:16:15.7]} 46... f5 {[%clk 0:15:50.3]} 47.
gxf5 {[%clk 0:16:17.7]} 47... Kxf5 {[%clk 0:15:54]} 48. Kg3 {[%clk 0:16:22.2]}
48... Kg5 {[%clk 0:15:57.8]} 49. f4+ {[%clk 0:16:25.5]} 49... Kg6 {[%clk
0:15:55]} 50. Kg4 {[%clk 0:16:29.2]} 50... h5+ {[%clk 0:15:58.5]} 51. Kf3 {[%clk
0:16:31.5]} 51... Kf5 {[%clk 0:16:01.7]} 52. Kg3 {[%clk 0:16:34.9]} 52... g5
{[%clk 0:15:58.3]} 53. fxg5 {[%clk 0:16:38.2]} 53... Kxg5 {[%clk 0:16:02.1]} 54.
Kh3 {[%clk 0:16:42.6]} 54... Kg6 {[%clk 0:16:03.4]} 55. Kh4 {[%clk 0:16:46.5]}
55... Kh6 {[%clk 0:16:07]} 56. Kg3 {[%clk 0:16:50.2]} 56... Kg5 {[%clk
0:16:10.9]} 57. Kh3 {[%clk 0:16:54.2]} 57... Kh6 {[%clk 0:16:10]} 58. Kh4 {[%clk
0:16:58.4]} 58... Kg6 {[%clk 0:16:13.9]} 59. Kh3 {[%clk 0:17:02.3]} 59... Kg5
{[%clk 0:16:16.6]} 60. Kg3 {[%clk 0:17:05.7]} 60... h4+ {[%clk 0:16:20]} 61. Kh3
{[%clk 0:17:09.4]} 61... Kh5 {[%clk 0:16:24]} 62. Kg2 {[%clk 0:17:13.3]} 62...
Kg4 {[%clk 0:16:26.8]} 63. Kh2 {[%clk 0:17:17.5]} 63... h3 {[%clk 0:16:25.7]}
64. Kg1 {[%clk 0:17:20.1]} 64... Kh4 {[%clk 0:16:25.6]} 65. Kh2 {[%clk 0:17:23]}
65... Kg4 {[%clk 0:16:29.2]} 66. Kg1 {[%clk 0:17:26.8]} 66... Kg3 {[%clk
0:16:33.2]} 67. Kh1 {[%clk 0:17:30.7]} 67... h2 {[%clk 0:16:33.4]} 1/2-1/2

[Event "Live Chess"]
[Site "Chess.com"]
[Date "2023.09.16"]
[Round "-"]
[White "PedroRossi14"]
[Black "Rafael-2021"]
[Result "0-1"]
[WhiteElo "517"]
[BlackElo "1067"]
[TimeControl "900+5"]
[EndTime "7:34:44 PDT"]
[Termination "Rafael-2021 venceu por desistência"]

1. e4 {[%clk 0:15:02.2]} 1... e5 {[%clk 0:15:02.1]} 2. Nf3 {[%clk 0:15:05.3]}
2... Nc6 {[%clk 0:15:04.3]} 3. d4 {[%clk 0:15:08.2]} 3... Nxd4 {[%clk
0:15:05.7]} 4. Nxd4 {[%clk 0:15:10.5]} 4... exd4 {[%clk 0:15:09]} 5. Qxd4 {[%clk
0:15:13.4]} 5... Nf6 {[%clk 0:15:10.2]} 6. Bc4 {[%clk 0:15:11.4]} 6... c6 {[%clk
0:15:11.6]} 7. Bd3 {[%clk 0:15:09.7]} 7... d5 {[%clk 0:15:14.3]} 8. O-O {[%clk
0:15:06.6]} 8... dxe4 {[%clk 0:15:12.5]} 9. Bxe4 {[%clk 0:15:09.9]} 9... Qxd4
{[%clk 0:15:15.2]} 10. Re1 {[%clk 0:14:52.4]} 10... Nxe4 {[%clk 0:15:11.4]} 11.
Be3 {[%clk 0:14:55.4]} 11... Qe5 {[%clk 0:15:14.4]} 12. Bd2 {[%clk 0:14:49]}
12... Bd6 {[%clk 0:15:16.8]} 0-1

[Event "Live Chess"]
[Site "Chess.com"]
[Date "2023.09.16"]
[Round "-"]
[White "guilhermemazza"]
[Black "RyanDiniz2011"]
[Result "0-1"]
[WhiteElo "457"]
[BlackElo "1557"]
[TimeControl "900+5"]
[EndTime "7:35:12 PDT"]
[Termination "RyanDiniz2011 venceu por xeque-mate"]

1. e4 {[%clk 0:15:03.2]} 1... e6 {[%clk 0:15:04]} 2. c4 {[%clk 0:15:06.3]} 2...
d5 {[%clk 0:15:08.7]} 3. d3 {[%clk 0:15:09.7]} 3... dxe4 {[%clk 0:15:11.1]} 4.
dxe4 {[%clk 0:15:12.1]} 4... Qxd1+ {[%clk 0:15:15.6]} 5. Kxd1 {[%clk 0:15:16.1]}
5... Nf6 {[%clk 0:15:19.9]} 6. Nc3 {[%clk 0:15:14.1]} 6... Bc5 {[%clk
0:15:22.6]} 7. Be3 {[%clk 0:15:08.8]} 7... Bxe3 {[%clk 0:15:25.3]} 8. fxe3
{[%clk 0:15:12]} 8... Nc6 {[%clk 0:15:28.2]} 9. Kc2 {[%clk 0:15:08.6]} 9... Bd7
{[%clk 0:15:31.9]} 10. Rd1 {[%clk 0:15:11]} 10... O-O-O {[%clk 0:15:36.4]} 11.
Rd2 {[%clk 0:15:10.6]} 11... Ne5 {[%clk 0:15:38.6]} 12. Be2 {[%clk 0:15:13.2]}
12... Bc6 {[%clk 0:15:39]} 13. Nf3 {[%clk 0:15:16.1]} 13... Nxf3 {[%clk
0:15:39.6]} 14. gxf3 {[%clk 0:15:19.3]} 14... Rxd2+ {[%clk 0:15:42.5]} 15. Kxd2
{[%clk 0:15:21.8]} 15... Rd8+ {[%clk 0:15:47]} 16. Kc2 {[%clk 0:15:25.6]} 16...
Nd7 {[%clk 0:15:49]} 17. Rd1 {[%clk 0:15:28.6]} 17... Ne5 {[%clk 0:15:52]} 18.
Rxd8+ {[%clk 0:15:31.7]} 18... Kxd8 {[%clk 0:15:56.6]} 19. b4 {[%clk 0:15:29.7]}
19... a6 {[%clk 0:15:59.3]} 20. b5 {[%clk 0:15:33]} 20... axb5 {[%clk
0:16:01.2]} 21. cxb5 {[%clk 0:15:36]} 21... Bd7 {[%clk 0:16:04.5]} 22. a4 {[%clk
0:15:36.4]} 22... c6 {[%clk 0:16:05.9]} 23. bxc6 {[%clk 0:15:37.7]} 23... Nxc6
{[%clk 0:16:09.2]} 24. Nb5 {[%clk 0:15:36.9]} 24... Nb4+ {[%clk 0:16:09.5]} 25.
Kc3 {[%clk 0:15:38.5]} 25... Na2+ {[%clk 0:16:07.1]} 26. Kb3 {[%clk 0:15:39.8]}
26... Nc1+ {[%clk 0:16:03.1]} 27. Kc2 {[%clk 0:15:41.8]} 27... Nxe2 {[%clk
0:16:05.7]} 28. Kd2 {[%clk 0:15:42]} 28... Ng1 {[%clk 0:16:05.3]} 29. a5 {[%clk
0:15:23.8]} 29... Nxf3+ {[%clk 0:16:08.1]} 30. Kd3 {[%clk 0:15:26.7]} 30...
Bxb5+ {[%clk 0:16:11]} 31. Kc3 {[%clk 0:15:30.3]} 31... Ne5 {[%clk 0:16:13.5]}
32. h4 {[%clk 0:15:31.3]} 32... f5 {[%clk 0:16:17.9]} 33. exf5 {[%clk
0:15:33.6]} 33... exf5 {[%clk 0:16:22.5]} 34. h5 {[%clk 0:15:37.2]} 34... h6
{[%clk 0:16:27]} 35. Kd2 {[%clk 0:15:40.6]} 35... g6 {[%clk 0:16:31.3]} 36. hxg6
{[%clk 0:15:44.1]} 36... Nxg6 {[%clk 0:16:35.9]} 37. Kc3 {[%clk 0:15:46]} 37...
h5 {[%clk 0:16:38.5]} 38. Kd4 {[%clk 0:15:49.7]} 38... h4 {[%clk 0:16:42.9]} 39.
Kd5 {[%clk 0:15:51.4]} 39... h3 {[%clk 0:16:46]} 40. Ke6 {[%clk 0:15:55.4]}
40... h2 {[%clk 0:16:50.4]} 41. Kxf5 {[%clk 0:15:59.5]} 41... h1=Q {[%clk
0:16:54.6]} 42. Kxg6 {[%clk 0:16:03.2]} 42... Qe4+ {[%clk 0:16:58.8]} 43. Kg5
{[%clk 0:16:02]} 43... Qxe3+ {[%clk 0:17:02.4]} 44. Kf5 {[%clk 0:16:05.9]} 44...
Qd3+ {[%clk 0:17:05.5]} 45. Ke5 {[%clk 0:16:09.8]} 45... Bd7 {[%clk 0:17:09.2]}
46. Kf6 {[%clk 0:16:13.1]} 46... Qc3+ {[%clk 0:17:11.3]} 47. Kg5 {[%clk
0:16:16]} 47... Qxa5+ {[%clk 0:17:14.1]} 48. Kh4 {[%clk 0:16:19.5]} 48... b5
{[%clk 0:17:18.7]} 49. Kg5 {[%clk 0:16:22.5]} 49... b4+ {[%clk 0:17:23.4]} 50.
Kf4 {[%clk 0:16:26.3]} 50... b3 {[%clk 0:17:28.1]} 51. Ke3 {[%clk 0:16:30.3]}
51... b2 {[%clk 0:17:32.8]} 52. Kd3 {[%clk 0:16:34]} 52... b1=Q+ {[%clk
0:17:36.2]} 53. Kc4 {[%clk 0:16:37.7]} 53... Qbb4+ {[%clk 0:17:40.1]} 54. Kd3
{[%clk 0:16:41.4]} 54... Qaa3+ {[%clk 0:17:44]} 55. Kc2 {[%clk 0:16:44.4]} 55...
Qbb2+ {[%clk 0:17:48.6]} 56. Kd1 {[%clk 0:16:47.7]} 56... Qaa1# {[%clk
0:17:53.3]} 0-1